[Event "German Bundesliga 2022-23"]
[Site "Germany"]
[Date "2022.11.26"]
[Round "3.4"]
[White "Hracek, Zbynek"]
[Black "Kasimdzhanov, Rustam"]
[Result "1/2-1/2"]
[ECO "D38"]
[WhiteElo "2548"]
[BlackElo "2676"]
[Annotator "TA"]
[PlyCount "36"]
[EventDate "2022.10.21"]
[EventType "team-tourn"]
[EventCountry "GER"]
[SourceTitle "playchess.com"]
[Source "ChessBase"]
[SourceQuality "1"]
[TimeControl "40/6000+30:3000+30"]

{[%evp 20,36,35,14,13,0,7,0,6,0,0,-7,-1,-2,0,-2,0,-4,0]} 1. d4 {[%emt 0:00:05]} Nf6 {[%emt 0:00:15]} 2. c4 {[%emt 0:00:06]} e6 {[%emt 0:00:03]} 3. Nf3 {[%emt 0:01:45]} d5 {[%emt 0:00:13]} 4. Nc3 {[%emt 0:00:10]} Bb4 {[%emt 0:00:07]} 5. Bg5 {[%emt 0:13:48]} h6 {[%emt 0:01:22]} 6. Bxf6 {[%emt 0:00:13]} Qxf6 {[%emt 0:00:07]} 7. e3 {[%emt 0:00:08]} O-O {[%emt 0:02:58]} 8. Rc1 {[%emt 0:00:39]} dxc4 {[%emt 0:05:16]} 9. Bxc4 {[%emt 0:00:16]} c5 {[%emt 0:00:04]} 10. O-O {[%emt 0:00:37]} cxd4 {[%emt 0:00:06]} 11. Nxd4 {[%emt 0:01:32]} Bd7 {[%emt 0:00:13][%cal Bc8d7,Bd7c6,Bc6d5][%mdl 32] The position is equal. D38: Queen's Gambit Declined: Ragozin Defence (4 Nf3 Bb4).} 12. Qb3 {[%emt 0:00:34]} (12. Ne4 {feels hotter.} Qe5 13. Be2 Nc6 14. Nf3) 12... Nc6 {[%emt 0:03:16]} 13. Nxc6 {[%emt 0:00:08]} Bxc3 {[%emt 0:00:04]} 14. Rxc3 {[%emt 0:01:05]} Bxc6 {[%emt 0:00:05]} 15. Bb5 {[%emt 0:00:07]} Bd5 {[%emt 0:00:02]} 16. Bc4 {[%emt 0:00:05]} Bc6 {[%emt 0:00:06]} 17. Bb5 {[%emt 0:00:06] [#]} Bd5 $146 {[%emt 0:00:02]} ({Predecessor:} 17... Be4 18. Bd3 Bxd3 19. Rxd3 b6 20. Rfd1 Rad8 21. Rxd8 Rxd8 22. Rxd8+ Qxd8 23. g3 h5 24. h4 Qd7 25. Qc2 {½-½ (31) Xu,Y (2557)-Xu,Y (2454) Xinghua 2017}) 18. Bc4 {[%emt 0:00:06]} Bc6 {An interesting draw.   Weighted Error Value: White=0.08 (flawless) /Black=0.02 (flawless)} 1/2-1/2

[Event "German Bundesliga 2022-23"]
[Site "Germany"]
[Date "2022.11.26"]
[Round "3.5"]
[White "Anton Guijarro, David"]
[Black "Heimann, Andreas"]
[Result "1-0"]
[ECO "E20"]
[WhiteElo "2668"]
[BlackElo "2573"]
[Annotator "TA"]
[PlyCount "65"]
[EventDate "2022.10.21"]
[EventType "team-tourn"]
[EventCountry "GER"]
[SourceTitle "playchess.com"]
[Source "ChessBase"]
[SourceQuality "1"]
[TimeControl "40/6000+30:3000+30"]

{[%evp 9,65,14,-16,-4,14,-10,-10,-5,-12,-12,38,21,25,24,25,22,35,0,0,0,0,3,19,-17,-12,-29,-22,-46,-42,-49,-44,-58,-91,-81,-87,-66,-66,-85,-30,-29,0,0,59,58,52,60,113,126,121,102,106,114,122,129,110,110,280,268]} 1. d4 {[%emt 0:00:09]} Nf6 {[%emt 0:00:06]} 2. c4 {[%emt 0:00:23]} e6 {[%emt 0:00:06]} 3. Nc3 {[%emt 0:00:44]} Bb4 {[%emt 0:00:09]} 4. f3 {[%emt 0:00:19]} c5 {[%emt 0:04:44]} 5. d5 {[%emt 0:00:16]} b5 {[%emt 0:00:47]} 6. e4 {[%emt 0:00:21] E20: Nimzo-Indian: 4 g3 and 4 f3.} d6 {[%emt 0:00:14] seems to push 6...bxc4 aside.} 7. Nge2 {[%emt 0:01:45]} bxc4 {[%emt 0:17:56] Black wants to play ...exd5.} 8. Nf4 {[%emt 0:00:28] The position is equal.} e5 {[%emt 0:03:47]} 9. Nfe2 {[%emt 0:00:19]} Ng8 {[%emt 0:04:10]} ({Black should play} 9... Nbd7 $11) 10. Ng3 {[%emt 0:05:27]} Ne7 {[%emt 0:00:12]} 11. Bxc4 {[%emt 0:01:29]} O-O {[%emt 0:05:43]} 12. O-O {[%emt 0:02:16]} Nd7 {[%emt 0:11:42] [#]} 13. f4 $146 {[%emt 0:35:45]} ({Predecessor:} 13. Be3 f5 14. exf5 Bxc3 15. bxc3 Nb6 16. Bd3 Nxf5 17. Nxf5 Bxf5 18. a4 Bxd3 19. Qxd3 {½-½ (43) Stalmach,R (2302)-Svanda,O (2303) Spindleruv Mlyn 2022}) 13... exf4 {[%emt 0:07:49]} 14. Bxf4 {[%emt 0:00:07]} Nb6 {[%emt 0:00:04]} 15. Be2 {[%emt 0:05:47]} Ng6 {[%emt 0:01:35]} 16. Qc1 {[%emt 0:00:12]} Nxf4 {[%emt 0:10:14]} 17. Qxf4 {[%emt 0:01:05]} Qe7 {[%emt 0:00:04]} 18. Nb5 {[%emt 0:15:36] aiming for a3.} c4 {[%emt 0:03:40]} 19. Kh1 {[%emt 0:00:31]} Bd7 {[%emt 0:08:20]} 20. a4 {[%emt 0:07:37]} g6 {[%emt 0:12:19]} 21. Rfc1 {[%emt 0:03:58][%cal Bf1c1,Bc1c4,Bc4e4,Be4e7,Be7a7][%mdl 32]} Bxb5 {[%emt 0:04:57]} 22. axb5 {[%emt 0:00:10]} Rac8 {[%emt 0:00:18]} 23. Bg4 {[%emt 0:03:35] [#]} Rc5 {[%emt 0:00:57]} (23... c3 $1 $17 {[%cal Oc3b2]} 24. bxc3 (24. Bxc8 cxb2 25. Bg4 Qh4 $17) (24. b3 Rce8) 24... Bxc3 25. Bxc8 Bxa1 26. Rxa1 Rxc8) 24. Ne2 $11 {[%emt 0:00:08]} f5 {[%emt 0:05:01]} ({Much less strong is} 24... Rxb5 25. Nd4 Rc5 26. Nc6 Rxc6 27. dxc6 $16) 25. exf5 {[%emt 0:00:55]} Rxd5 {[%emt 0:00:05]} (25... Nxd5 $11 26. Qd4 gxf5) 26. Rxc4 $1 $14 {[%emt 0:10:11]} Bd2 {[%emt 0:05:14]} (26... Nxc4 $2 27. Qxc4 Qf7 28. Qxb4 $18) 27. Re4 {[%emt 0:01:15]} Bxf4 {[%emt 0:02:45]} (27... Qf6 $14 28. Qg3 Qxb2) 28. Rxe7 $16 {[%emt 0:00:07]} Bg5 {[%emt 0:00:03]} 29. Rexa7 {[%emt 0:04:04] Hoping for fxg6.} gxf5 {[%emt 0:01:09]} 30. Bf3 $36 {[%emt 0:00:47][%mdl 2048] White has strong initiative.} Rxb5 {[%emt 0:00:14]} 31. Nd4 {[%emt 0:02:10]} Re5 {[%emt 0:00:02]} 32. Rb7 {[%emt 0:00:59] White is much more active.} Nc4 {[%emt 0:01:30] [#]} (32... Nc8 $16 {might work better.} 33. b4 Kh8) 33. Nc6 $1 {[%emt 0:02:34] Weighted Error Value: White=0.09 (flawless) /Black=0.17 (very precise)} 1-0

[Event "German Bundesliga 2022-23"]
[Site "Germany"]
[Date "2022.11.26"]
[Round "3.5"]
[White "Naiditsch, Arkadij"]
[Black "Babula, Vlastimil"]
[Result "1-0"]
[ECO "B66"]
[WhiteElo "2667"]
[BlackElo "2551"]
[Annotator "TA"]
[PlyCount "55"]
[EventDate "2022.10.21"]
[EventType "team-tourn"]
[EventCountry "GER"]
[SourceTitle "playchess.com"]
[Source "ChessBase"]
[SourceQuality "1"]
[TimeControl "40/6000+30:3000+30"]

{[%evp 23,55,0,5,-12,-8,-21,0,0,0,0,0,-6,0,0,114,117,121,121,216,232,218,70,94,67,298,311,307,309,315,265,940,477,908,906]} 1. e4 {[%emt 0:00:04]} c5 {[%emt 0:00:09]} 2. Nf3 {[%emt 0:00:06]} d6 {[%emt 0:00:25]} 3. d4 {[%emt 0:00:12]} cxd4 {[%emt 0:00:07]} 4. Nxd4 {[%emt 0:00:04]} Nf6 {[%emt 0:00:13]} 5. Nc3 {[%emt 0:00:07]} Nc6 {[%emt 0:00:26]} 6. Bg5 {[%emt 0:00:09]} e6 {[%emt 0:00:30]} 7. Qd2 {[%emt 0:00:12]} a6 {[%emt 0:01:15]} 8. O-O-O {[%emt 0:00:09]} Be7 {[%emt 0:00:56]} 9. f3 {[%emt 0:07:54]} Nxd4 {[%emt 0:02:24]} 10. Qxd4 {[%emt 0:00:09]} b5 {[%emt 0:01:01]} 11. h4 {[%emt 0:04:31]} Bb7 {[%emt 0:08:03]} 12. Kb1 {[%emt 0:04:30]} O-O {[%emt 0:06:36]} 13. Bd3 {[%emt 0:01:14] B63: Sicilian: Richter-Rauzer: 7...Be7 and unusual Black 7th moves.} Qc7 {[%emt 0:03:47]} 14. Ne2 {[%emt 0:23:24][%cal Bc3e2,Be2f4,Bf4h5][%mdl 32]} Rac8 {[%emt 0:19:03]} 15. Qf2 {[%emt 0:03:07] The position is equal.} d5 {[%emt 0:13:57]} 16. e5 {[%emt 0:01:15]} Ne4 {[%emt 0:00:57]} 17. Qe1 {[%emt 0:03:40] [#]} (17. fxe4 dxe4 18. Bxe7 exd3 19. cxd3 (19. Bxf8 $2 dxc2+ 20. Ka1 cxd1=N $19) 19... Qxe7 $15) 17... Bc5 $1 {[%emt 0:03:25] Against Nd4} 18. Rf1 $1 {[%emt 0:09:48] [#] Inhibits Nf2.} (18. fxe4 dxe4 19. Qg3 exd3 20. cxd3 (20. Bf6 $2 dxc2+ 21. Ka1 cxd1=Q+ $19) 20... Kh8 $17) 18... Qb6 $146 {[%emt 0:10:33]} ({Predecessor:} 18... Bb6 19. Rc1 Ba5 20. c3 Nc5 21. Bc2 Na4 22. Qg3 f5 23. Nf4 Qf7 24. h5 Bc7 25. Bxa4 bxa4 {1-0 (31) Salgado Lopez,I (2602)-Edouard,R (2636) Barcelona 2010}) 19. Nf4 $16 {[%emt 0:12:13]} ({Of course not} 19. fxe4 $6 dxe4 20. b4 Be3 $11) (19. fxe4 {simplifies} dxe4 20. Qg3 exd3 21. Rxd3 f5 22. exf6 Rf7 23. Qg4) 19... Nf2 {[%emt 0:06:35] [#]} 20. Nh5 $1 {[%emt 0:01:22][%cal Oh5g7] aiming for Nxg7!} Nxd1 {[%emt 0:09:35]} (20... f6 $16 {might work better.} 21. exf6 g6) 21. Qxd1 $18 {[%emt 0:00:19][%cal Oh5g7] Nxg7! is the strong threat.} Bd4 {[%emt 0:04:24] [#]} 22. f4 {[%emt 0:12:36]} (22. Nf6+ $1 $18 gxf6 23. Bxf6) 22... f5 $1 $14 {[%emt 0:02:58] Hoping for ...Rc7.} 23. exf6 {[%emt 0:01:50]} Bxf6 {[%emt 0:00:56] Black cannot hold the game after this.} ({Black should try} 23... g6 $1 $14) 24. Bxf6 $18 {[%emt 0:01:52] Really sharp!} Rxf6 {[%emt 0:00:47]} 25. Nxf6+ {[%emt 0:00:31]} gxf6 {[%emt 0:00:10]} 26. Qh5 {[%emt 0:00:32]} Rc7 {[%emt 0:03:06]} (26... Qc7 27. Qg4+ Kf8 28. Qxe6 Qf7) 27. Qe8+ {[%emt 0:02:24]} Kg7 {[%emt 0:00:07]} 28. h5 {[%emt 0:00:29] Weighted Error Value: White=0.13 (very precise) /Black=0.44} 1-0

[Event "German Bundesliga 2022-23"]
[Site "Germany"]
[Date "2022.11.26"]
[Round "3.6"]
[White "Zilka, Stepan"]
[Black "Amin, Bassem"]
[Result "1/2-1/2"]
[ECO "C95"]
[WhiteElo "2602"]
[BlackElo "2685"]
[Annotator "TA"]
[PlyCount "63"]
[EventDate "2022.10.21"]
[EventType "team-tourn"]
[EventCountry "GER"]
[SourceTitle "playchess.com"]
[Source "ChessBase"]
[SourceQuality "1"]
[TimeControl "40/6000+30:3000+30"]

{[%evp 30,63,16,16,32,21,29,37,41,35,12,-52,29,14,18,15,20,18,39,0,5,22,16,0,0,0,6,0,0,0,9,0,0,0,16,0]} 1. e4 {[%emt 0:00:20]} e5 {[%emt 0:01:00]} 2. Nf3 {[%emt 0:00:05]} Nc6 {[%emt 0:00:06]} 3. Bb5 {[%emt 0:00:08][%cal Bf1b5,Bb5a4,Ba4b3,Bb3c2,Bc2d3][%mdl 32]} a6 {[%emt 0:00:56]} 4. Ba4 {[%emt 0:00:07]} Nf6 {[%emt 0:00:06]} 5. O-O {[%emt 0:00:08]} Be7 {[%emt 0:00:13]} 6. Re1 {[%emt 0:00:09]} b5 {[%emt 0:00:08]} 7. Bb3 {[%emt 0:00:05]} d6 {[%emt 0:00:05]} 8. c3 {[%emt 0:00:08]} O-O {[%emt 0:00:11]} 9. h3 {[%emt 0:00:05]} Nb8 {[%emt 0:00:42]} 10. d4 {[%emt 0:00:08]} Nbd7 {[%emt 0:00:04]} 11. Nbd2 {[%emt 0:00:13][%cal Bb1d2,Bd2f1,Bf1g3][%mdl 32]} Bb7 {[%emt 0:00:06]} 12. Bc2 {[%emt 0:00:16]} Re8 {[%emt 0:00:06]} 13. Nf1 {[%emt 0:00:09]} Bf8 {[%emt 0:00:04]} 14. Ng3 {[%emt 0:00:10]} g6 {[%emt 0:00:05]} 15. a4 {[%emt 0:01:09]} Bg7 {[%emt 0:07:51]} 16. Bd3 {[%emt 0:01:28]} exd4 {[%emt 0:00:34] C95: Closed Ruy Lopez: Breyer Variation with 10 d4.} 17. cxd4 {[%emt 0:00:58]} c5 {[%emt 0:03:24]} 18. axb5 {[%emt 0:02:50]} axb5 {[%emt 0:00:08] White is slightly better.} 19. Rxa8 {[%emt 0:00:06]} Bxa8 {[%emt 0:00:52] [#]} 20. b4 $146 {[%emt 0:24:55]} (20. dxc5 $11 Nxc5 21. Bxb5) ({Predecessor:} 20. dxc5 Nxc5 21. Bxb5 Rf8 22. e5 dxe5 23. Qxd8 Rxd8 24. Nxe5 Nd5 25. Bc4 Re8 26. Nd3 Rxe1+ 27. Nxe1 {½-½ (60) So,W (2770)-Amin,B (2686) Chess.com INT 2020}) 20... cxd4 {[%emt 0:11:42]} ({Don't do} 20... cxb4 21. Bd2 $16 (21. Bxb5 Nxe4 22. Nxe4 Rxe4 $15)) (20... c4 $15 21. Bc2 d5) 21. Nxd4 $11 {[%emt 0:14:44]} d5 {[%emt 0:08:39]} 22. Bxb5 {[%emt 0:16:52]} dxe4 {[%emt 0:05:36]} 23. Bg5 {[%emt 0:01:52]} Qc7 {[%emt 0:13:13]} 24. Qc1 {[%emt 0:24:48]} (24. Qd2 $5 {[%cal Re1c1]}) 24... Rc8 {[%emt 0:14:42] The position is equal.} 25. Qxc7 {[%emt 0:01:25]} Rxc7 {[%emt 0:00:02]} 26. Bf4 {[%emt 0:03:12]} Rc3 {[%emt 0:07:57]} 27. Rd1 {[%emt 0:00:03] [#] And now Nde2 would win.} Nb6 {[%emt 0:07:49]} 28. Nge2 {[%emt 0:00:31]} Rc8 {[%emt 0:01:36]} 29. Ba6 {[%emt 0:00:05]} Re8 {[%emt 0:00:24]} 30. Bb5 {[%emt 0:00:24]} Rc8 {[%emt 0:00:29]} 31. Ba6 {[%emt 0:00:59]} Re8 {[%emt 0:00:30]} 32. Bb5 {[%emt 0:04:27] Weighted Error Value: White=0.15 (very precise) /Black=0.08 (flawless)} (32. Nb5 $5 {[%cal Rb5c7]}) 1/2-1/2

[Event "German Bundesliga 2022-23"]
[Site "Germany"]
[Date "2022.11.26"]
[Round "3.6"]
[White "Pruijssers, Roeland"]
[Black "Donchenko, Alexander"]
[Result "0-1"]
[ECO "B15"]
[WhiteElo "2547"]
[BlackElo "2645"]
[Annotator "TA"]
[PlyCount "72"]
[EventDate "2022.10.21"]
[EventType "team-tourn"]
[EventCountry "GER"]
[SourceTitle "playchess.com"]
[Source "ChessBase"]
[SourceQuality "1"]
[TimeControl "40/6000+30:3000+30"]

{[%evp 14,72,30,36,33,19,56,35,28,25,64,11,0,0,0,0,0,0,0,0,0,0,0,0,0,0,0,0,0,0,0,0,0,0,0,0,0,0,0,-8,-20,-13,0,-1146,-1127,-1040,-1004,-29985,-29986,-29986,-29987,-29987,-29988,-29988,-29989,-29990,-29991,-29996,-29997,-29997,-29998]} 1. e4 {[%emt 0:00:03]} c6 {[%emt 0:00:25]} 2. Nc3 {[%emt 0:00:22]} d5 {[%emt 0:00:17]} 3. d4 {[%emt 0:00:11]} dxe4 {[%emt 0:00:23]} 4. Nxe4 {[%emt 0:00:08]} Nf6 {[%emt 0:00:21]} 5. Nxf6+ {[%emt 0:00:21]} exf6 {[%emt 0:00:11]} 6. c3 {[%emt 0:07:38]} Bd6 {[%emt 0:00:42]} 7. Bd3 {[%emt 0:01:22]} O-O {[%emt 0:00:26]} 8. Qc2 {[%emt 0:00:42]} Re8+ {[%emt 0:00:18] B15: Caro-Kann: 3 Nc3: 3...g6 and 3...dxe4 4 Nxe4 Nf6 5 Nxf6+ exf6.} 9. Ne2 {[%emt 0:00:08]} h5 {[%emt 0:00:23]} 10. Be3 {[%emt 0:00:08]} Nd7 {[%emt 0:01:07] White is slightly better.} 11. O-O-O {[%emt 0:00:13]} b5 {[%emt 0:01:58]} 12. g4 {[%emt 0:03:58]} (12. d5 $14) 12... hxg4 $11 {[%emt 0:01:57]} 13. h3 {[%emt 0:17:08]} g3 {[%emt 0:10:42][%cal Of6f5]} 14. Rhg1 {[%emt 0:00:36] Against f5} gxf2 {[%emt 0:26:20]} 15. Bxf2 {[%emt 0:00:07] [#]} Nb6 $146 {[%emt 0:10:40]} ({Predecessor:} 15... Qa5 16. Qd2 Kf8 17. Ng3 b4 18. c4 Qxa2 19. Nh5 Nb6 20. b3 Qxb3 21. Qb2 Qxb2+ 22. Kxb2 {0-1 (60) Razafindratsima,T (2386)-David,A (2545) Paris 2022}) 16. Qd2 {[%emt 0:06:38]} Kf8 $1 {[%emt 0:12:21]} (16... Bxh3 $2 17. Qh6 Kf8 18. Rxg7 Rxe2 19. Rg8+ Ke7 20. Rxd8 (20. Bxe2 Qxg8 21. Qxh3 Qg5+ 22. Kb1 Re8 $11) 20... Rxd8 21. Bxe2 $18) 17. Ng3 {[%emt 0:00:54][%cal Be2g3,Bg3h5,Bh5g7][%mdl 32]} Nc4 {[%emt 0:05:30]} 18. Bxc4 {[%emt 0:40:35]} bxc4 {[%emt 0:00:08]} 19. Nh5 {[%emt 0:00:04]} Qa5 {[%emt 0:01:50]} (19... Bxh3 $2 20. Rxg7 Be6 21. Bh4 $18) (19... g5 20. Qc2 $16) 20. Nxg7 {[%emt 0:00:40] [#] Qh6 is the strong threat.} Qxa2 {[%emt 0:01:01][%cal Oa8b8]} 21. Qh6 $1 {[%emt 0:01:25][%cal Rg7f5]} (21. Nxe8 {leads to mate.} Qa1+ 22. Kc2 Bf5+) 21... Qa1+ {[%emt 0:01:39]} 22. Kc2 {[%emt 0:00:28][%cal Rg7f5]} Re2+ {[%emt 0:00:54]} 23. Rd2 {[%emt 0:00:06]} Rxd2+ $40 {[%emt 0:00:48][%mdl 128] Black is up to no good.} 24. Qxd2 {[%emt 0:00:13] And now Qh6 would win.} Qa4+ $1 {[%emt 0:03:34]} (24... Qa2 $2 25. Qh6 $18) 25. Kb1 {[%emt 0:00:07] Strongly threatening Qh6.} Rb8 $1 {[%emt 0:03:28][%cal Od6a3,Ba8b8,Bb8b5,Bb5a5,Ba5a1][%mdl 32] White must now prevent ...Ba3!} 26. Bg3 {[%emt 0:02:48]} (26. Qh6 {[#] gets mated.} Rxb2+ $3 {[%mdl 512]} 27. Kxb2 Ba3+ 28. Ka1 Bb4+ 29. Kb2 Qb3+ 30. Kc1 Qxc3+ 31. Kb1 Qd3+ 32. Kb2 Ba3+ 33. Ka2 Qc2+ 34. Kxa3 Qb3#) 26... Bxg3 {[%emt 0:02:17] Chess con chili.} 27. Rxg3 {[%emt 0:00:07]} Rb5 {[%emt 0:09:49] aiming for ...Ra5.} 28. h4 $2 {[%emt 0:01:48][%mdl 8192]} (28. Rg1 $11) 28... Ra5 $19 {[%emt 0:02:27] Threatens to win with ...Bd7.} 29. Kc1 {[%emt 0:21:39]} Qb3 {[%emt 0:02:19][%cal Ra5a1]} 30. Qc2 {[%emt 0:00:28]} Ra1+ {[%emt 0:01:31] Black mates.} 31. Kd2 {[%emt 0:00:02]} Qb8 {[%emt 0:05:04]} 32. Qh7 {[%emt 0:02:08]} Qxb2+ {[%emt 0:01:09]} (32... Qxg3 $2 33. Qh8+ Ke7 34. Qe8+ Kd6 35. Qd8+ (35. Qxf7 $2 Qf2#) 35... Bd7 36. Nf5+ (36. Qxf6+ $2 Kc7 $19) 36... Ke6 37. Nxg3 $18) 33. Qc2 {[%emt 0:00:03]} Qb8 {[%emt 0:00:54]} 34. Qh7 {[%emt 0:00:20]} Ra2+ {[%emt 0:00:31]} (34... Qxg3 $2 35. Qh8+ Ke7 36. Qe8+ Kd6 37. Qd8+ (37. Qxf7 $2 Qf2#) 37... Bd7 38. Nf5+ (38. Qxf6+ $2 Kc7 $19) 38... Ke6 39. Nxg3 $18) 35. Kd1 {[%emt 0:00:08]} Bg4+ {[%emt 0:00:08]} (35... Qxg3 $2 36. Qh8+ Ke7 37. Qe8+ Kd6 38. Qd8+ (38. Qxf7 $2 Qg1#) 38... Bd7 39. Nf5+ (39. Qxf6+ $2 {loses.} Kd5 $19) 39... Ke6 40. Nxg3 $18) 36. Rxg4 {[%emt 0:00:13]} Qb3+ {[%emt 0:00:05] Weighted Error Value: White=0.31/Black=0.03 (flawless)} 0-1

[Event "German Bundesliga 2022-23"]
[Site "Germany"]
[Date "2022.11.26"]
[Round "3.7"]
[White "Gustafsson, Jan"]
[Black "Grigorian, Spartak"]
[Result "1-0"]
[ECO "E47"]
[WhiteElo "2638"]
[BlackElo "2460"]
[Annotator "TA"]
[PlyCount "65"]
[EventDate "2022.10.21"]
[EventType "team-tourn"]
[EventCountry "GER"]
[SourceTitle "playchess.com"]
[Source "ChessBase"]
[SourceQuality "1"]
[TimeControl "40/6000+30:3000+30"]

{[%evp 27,65,6,60,26,61,58,60,56,44,46,62,57,66,62,227,231,315,315,573,552,654,650,643,640,597,544,29987,29988,29988,29985,29993,29994,29994,0,29995,0,29996,29997,29997,29998]} 1. d4 {[%emt 0:00:05]} Nf6 {[%emt 0:00:11]} 2. c4 {[%emt 0:00:10]} e6 {[%emt 0:00:05]} 3. Nc3 {[%emt 0:00:14]} Bb4 {[%emt 0:00:05]} 4. e3 {[%emt 0:00:12]} O-O {[%emt 0:00:55]} 5. Bd3 {[%emt 0:00:12]} c5 {[%emt 0:01:42]} 6. Nge2 {[%emt 0:00:43]} d5 {[%emt 0:10:41]} 7. cxd5 {[%emt 0:00:34]} exd5 {[%emt 0:02:48]} 8. a3 {[%emt 0:04:19]} Bxc3+ {[%emt 0:01:26]} 9. bxc3 {[%emt 0:00:19]} b6 {[%emt 0:02:44]} 10. O-O {[%emt 0:01:28]} Ba6 {[%emt 0:02:17]} 11. f3 {[%emt 0:00:56]} Re8 {[%emt 0:09:45]} 12. Ng3 {[%emt 0:00:57]} Bxd3 {[%emt 0:00:43]} 13. Qxd3 {[%emt 0:00:15]} Nc6 {[%emt 0:00:07][%cal Bb8c6,Bc6e5,Be5c4][%mdl 32]} 14. Bb2 {[%emt 0:00:47]} Rc8 {[%emt 0:01:13]} (14... c4 $11 15. Qd2 h5) 15. Rae1 {[%emt 0:03:03] E49: Nimzo-Indian: Rubinstein: 5 Bd3 d5 6 a3 Bxc3+ 7 bxc3.} (15. e4 $5 {[%cal Re4e5]}) 15... Rc7 {[%emt 0:16:15]} 16. e4 $1 {[%emt 0:08:07]} dxe4 {[%emt 0:01:29]} 17. fxe4 {[%emt 0:00:44] White is slightly better.} Ne5 {[%emt 0:00:06]} 18. Qe2 {[%emt 0:00:23]} (18. dxe5 $2 {perishes.} Qxd3 19. exf6 g6 $19) 18... cxd4 {[%emt 0:01:02]} 19. cxd4 {[%emt 0:00:08]} Nc4 {[%emt 0:00:18]} 20. Ba1 {[%emt 0:00:38] [#]} (20. e5 $5 {[%cal Rg3f5]}) 20... Qe7 $146 {[%emt 0:42:04]} (20... Nxa3 $2 21. d5 Kh8 22. Nf5 $18) (20... b5 $14) ({Predecessor:} 20... b5 21. d5 Nd7 22. Nf5 Nde5 23. Qh5 g6 24. Nh6+ Kg7 25. Qh3 f6 26. Ng4 Nxg4 27. Qxg4 {½-½ (32) Stathopoulos,I (2278)-Sandalakis,A (2412) Thessaloniki 2022}) 21. Qf2 $18 {[%emt 0:35:37]} Qxa3 {[%emt 0:03:27]} (21... Nxa3 $2 22. Nf5 Qf8 23. d5 $18) 22. Qf4 {[%emt 0:00:19]} Rce7 {[%emt 0:03:43] [#]} (22... Ree7 23. Nf5 Ne8) 23. Nf5 $1 {[%emt 0:07:51][%cal Bg3f5,Bf5h6,Bh6f7][%mdl 32]} Rxe4 {[%emt 0:05:55]} 24. Rxe4 {[%emt 0:00:38]} Rxe4 {[%emt 0:00:24] [#]} 25. Qg5 {[%emt 0:02:04][%csl Gf5][%cal Rg5g7]} Qf8 {[%emt 0:02:41]} 26. d5 $1 {[%emt 0:00:37]} Ne3 {[%emt 0:00:29] aiming for ...Nxf5.} 27. Nh6+ {[%emt 0:01:30]} ({Weaker is} 27. Nxe3 h6 28. Qg3 Qc5 $18) 27... Kh8 {[%emt 0:00:02]} 28. Rxf6 {[%emt 0:00:10]} Qc5 {[%emt 0:01:19]} 29. Nxf7+ {[%emt 0:00:42]} Kg8 {[%emt 0:00:01]} 30. Nh6+ {[%emt 0:00:14]} Kh8 {[%emt 0:00:02] [#] Hoping for ...Qc1+.} 31. Rf8+ $3 {[%emt 0:00:21][%mdl 512]} Qxf8 {[%emt 0:00:04][%csl Ge3][%cal Rf8f1] [#]} 32. Bxg7+ $1 {[%emt 0:00:07][%mdl 576] Deflection, Back Rank} Qxg7 {[%emt 0:00:03]} 33. Qd8+ {[%emt 0:00:10] Black did not feel at home in the position after the opening.   Weighted Error Value: White=0.02 (flawless) /Black=0.89} 1-0